Cogmind - Beta 16 --- EXPLORER MODE // 2026.01.06 @ 16:18:53 Player: K.K.Y. Result: Destroyed by G-50 Soldier with Heavy Laser Performance ------------- Evolutions (4) 2000 Regions Visited (6) 1200 Robots Destroyed (151) 755 Value Destroyed (6044) 6044 Prototype IDs (22) 440 Alien Tech Used (0) 0 Bonus (2228) 2228 TOTAL SCORE: 12667 Bonus ------- Follower Combat Kills 407 Delivered SUBCON Basin 2000 Friendly Fire -179 Cogmind --------- Core Integrity 0/850 Matter 222/300 Energy 289/300 System Corruption 0% Temperature Cool (-128) Movement Treading (322) Ox2 Location -6/Factory Parts ------- > --- POWER (2) -------- Cold Fusion Reactor Cold Fusion Reactor > --- PROPULSION (5) --- Armored Treads Medium Treads Medium Treads Medium Treads > --- UTILITY (7) ------ Improved Cryofiber Web Advanced Heat Sink Advanced Heat Sink Humpback Machine Analyzer Makeshift System Restoration Module > --- WEAPON (2) ------- Phase Cannon Antimatter Cannon > --- INVENTORY (35) --- Angular Momentum Engine Fission Core Improved Cryofiber Web Improved Cryofiber Web Improved Cryofiber Web Improved Trap Scanner Advanced Sensor Array IFF Parser Advanced Terrain Scanner Advanced Terrain Scan Processor Experimental Targeting Computer Faulty Experimental Targeting Computer Transmission Jammer Advanced ECM Suite Improved Heavy Armor Plating EM Disruption Field Improved Hardlight Generator Improved Shield Generator Improved Hacking Suite Improved Hacking Suite System Shield System Guard Corruption Screen Makeshift System Restoration Module High-powered Shock Rifle High-powered Field Laser Antimatter Cannon Antimatter Cannon Antimatter Cannon Antimatter Cannon Antimatter Cannon Powered Hammer Chainsword Power Sword Peak State ------------ > --- POWER ------------ Angular Momentum Engine Light Angular Momentum Engine > --- PROPULSION ------- Improved Medium Treads Multireflex Exoskeleton Cargo Legs > --- UTILITY ---------- Humpback Deep Structural Scanner Improved Trap Scanner Machine Analyzer Improved Heavy Armor Plating Tech Extrapolator Dynamic Insulation System > --- WEAPON ----------- Improved Heavy Machine Gun Heavy Flak Cannon > --- INVENTORY -------- Improved Heat Sink Improved Heat Sink Medium Storage Unit High-capacity Storage Unit Humpback Improved Sensor Array Improved Signal Interpreter Advanced Terrain Scan Processor Makeshift Targeting Computer EM Shield Hacking Suite Hacking Suite Authchip [R/Combat] Authchip [Propulsion] Authchip [Weapon] Improved System Restoration Module Improved System Restoration Module Improved System Restoration Module Riot Gun Overtuned Pulse Rifle Makeshift Laser EM Pulse Cannon Heavy Plasma Cannon Heavy Plasma Cannon Minigun High-powered Shotgun Flak Gun Improved Light Cannon Flak Cannon Improved Datajack Mining Laser Multitool Great Maul Chainsword [Rating: 99] Favorites ----------- Power Cold Fusion Reactor Engine Angular Momentum Engine Power Core Light Nuclear Core Reactor Cold Fusion Reactor Propulsion Cargo Legs Treads Light Treads Leg Cargo Legs Hover Unit Gravmag System Utility Humpback Device Advanced Heat Sink Storage Humpback Processor Machine Analyzer Hackware Hacking Suite Protection Hardened Light Armor Plating Weapon Battle Cannon Energy Gun High-powered Shock Rifle Energy Cannon Phase Cannon Ballistic Gun Improved Heavy Machine Gun Ballistic Cannon Battle Cannon Special Weapon Mining Laser Build | -11 -10 -10 -10 -8 -8 -6 ------- Run | Yrd Mat Min Sub Rec Scr Fac Slots Evolved 9 | . 1 . . . . 8 Power 1 | . . . . . . 1 Propulsion 3 | . . . . . . 3 Utility 5 | . 1 . . . . 4 Weapon . | . . . . . . . Parts Attached 109 | 3 9 2 7 1 5 82 Power 16 | 1 1 1 . 1 1 11 Engine 6 | 1 1 . . 1 1 2 Core 6 | . . 1 . . . 5 Reactor 4 | . . . . . . 4 Propulsion 25 | . 2 . 1 . . 22 Treads 12 | . 2 . . . . 10 Leg 12 | . . . 1 . . 11 Wheel . | . . . . . . . Hover 1 | . . . . . . 1 Flight . | . . . . . . . Utility 42 | . 4 . 4 . 3 31 Device 22 | . . . 1 . . 21 Storage 5 | . 1 . 2 . . 2 Processor 5 | . . . . . 1 4 Hackware 1 | . . . . . . 1 Protection 9 | . 3 . 1 . 2 3 Artifact . | . . . . . . . Weapon 26 | 2 2 1 2 . 1 18 Energy Gun 6 | 1 . . . . . 5 Energy Cannon 9 | . . . . . . 9 Ballistic Gun 1 | . . . . . . 1 Ballistic Cannon 9 | . 2 1 2 . 1 3 Launcher . | . . . . . . . Special Weapon 1 | 1 . . . . . . Impact Weapon . | . . . . . . . Slashing Weapon . | . . . . . . . Piercing Weapon . | . . . . . . . Special Melee Weapon . | . . . . . . . Unidentified Prototypes 9 | . . . 1 . . 8 Parts Lost 41 | . . . . . . 41 Power 4 | . . . . . . 4 Propulsion 10 | . . . . . . 10 Utility 13 | . . . . . . 13 Weapon 14 | . . . . . . 14 Highest Loss Streak 16 | . . . . . . 16 To Critical Strikes 1 | . . . . . . 1 Average Backups 23 | 4 6 9 17 26 34 26 Power 1 | . . . . . . 1 Propulsion 1 | 1 . . 1 2 2 1 Utility 12 | 1 3 6 10 14 16 13 Weapon 7 | . 2 3 4 8 13 8 Tool/Special . | . . . . . . . Unused Backups 86 | . 1 . 2 1 9 73 Power 4 | . . . . . . 4 Propulsion 3 | . . . . . . 3 Utility 41 | . 1 . 2 1 2 35 Weapon 36 | . . . . . 7 29 Tool/Special 2 | . . . . . . 2 Average Slot Usage (%) 82 | . 98 100 83 80 79 81 Engine 3 | . 11 6 . 1 10 1 Core 3 | . . 5 10 8 . 1 Reactor 3 | . . . . . . 7 Treads 7 | . 24 25 5 . . 7 Leg 10 | . . . 7 10 10 13 Device 11 | . . . 9 10 . 17 Storage 7 | . 9 12 10 10 10 4 Processor 4 | . . . . . 2 8 Hackware 1 | . . . . . . 2 Protection 12 | . 26 25 17 20 26 2 Energy Cannon 3 | . . . . . . 6 Ballistic Cannon 12 | . 24 25 21 20 20 2 Peak Build Rating 99 | 2 13 15 56 56 46 99 Average Rating 55 | . 12 13 45 41 44 72 On Entrance 25 | . 2 13 15 56 44 46 Avg Prop Armor Cover (%) 5 | . . . . . . 5 Naked Turns . | . . . . . . . Heaviest Build 255 | 4 33 33 223 221 236 255 Greatest Support 134 | 3 40 40 55 55 55 134 Greatest Overweight (x) 9 | 1 . . 4 4 4 9 Average Overweight (x) 2 | . . . 2 3 3 2 Largest Inventory Capacity 35 | 5 10 10 35 35 35 35 Average Capacity 29 | 5 9 10 30 35 35 30 Most Carried 35 | 5 10 10 35 35 35 35 Average Carried 26 | 4 6 9 28 28 34 27 Final Capacity 35 | 5 10 10 35 35 35 35 Final Carried 35 | 5 10 10 35 35 35 35 Class Distribution -------------------- 60% | Hauler-Mutant 21% | Hacker-Mutant 17% | Commander-Mutant Dominant Class ---------------- Hacker-Mutant | -10/Materials Hacker-Mutant | -10/Mines Hauler-Mutant | -10/Subcaves Hauler-Mutant | -8/Recycling Commander-Mutant | -8/Scraptown Hauler-Mutant | -6/Factory Resources | -11 -10 -10 -10 -8 -8 -6 ----------- Run | Yrd Mat Min Sub Rec Scr Fac Matter Collected 3325 | 220 369 71 459 10 20 2176 Remotely . | . . . . . . . Salvage Created 5988 | 208 311 . 44 . . 5425 Parts 293 | 15 33 . 7 . . 238 Haulers Intercepted 10 | . 2 . . . . 8 Recyclers Shooed 6 | 1 . . . . . 5 Parts Field Recycled . | . . . . . . . Retrieved Matter . | . . . . . . . Parts Self-Destructed . | . . . . . . . Prevented . | . . . . . . . Parts Restored . | . . . . . . . Kills | -11 -10 -10 -10 -8 -8 -6 ------- Run | Yrd Mat Min Sub Rec Scr Fac Combat Hostiles Destroyed 97 | . 7 . 2 . . 88 Guns 13 | . . . . . . 13 Cannons 70 | . 7 . 2 . . 61 AOE 1 | . . . . . . 1 Classes Destroyed 18 | 2 5 . 3 . . 8 Worker 5 | . . . . . . 5 Builder 12 | . 3 . . . . 9 Tunneler 6 | 6 . . . . . . Hauler 10 | . 2 . . . . 8 Recycler 4 | 1 1 . . . . 2 Mechanic 3 | . . . . . . 3 Operator 3 | . . . . . . 3 Watcher 9 | . 3 . . . . 6 Swarmer 10 | . 4 . . . . 6 Grunt 34 | . 3 . . . . 31 Brawler 2 | . . . . . . 2 Sentry 11 | . . . . . . 11 Hunter 11 | . . . . . . 11 Programmer 26 | . . . . . . 26 Behemoth 1 | . . . . . . 1 Artisan 3 | . . . 3 . . . Subdweller 2 | . . . 2 . . . Zionite 2 | . . . 2 . . . Best Kill Streak 6 | 4 4 . 2 . . 6 Combat Bots Only 5 | . 2 . 2 . . 5 Max Kills in Single Turn 6 | 1 2 . 1 . . 6 Gunslinging . | . . . . . . . Exploded 1 | . . . . . . 1 Melee . | . . . . . . . Uniques/NPCs Destroyed . | . . . . . . . Combat | -11 -10 -10 -10 -8 -8 -6 -------- Run | Yrd Mat Min Sub Rec Scr Fac Hostile Shots Fired 1115 | . 8 . 23 . . 1084 Missed 378 | . 4 . 6 . . 368 Hits 737 | . 4 . 17 . . 716 Melee 2 | . . . . . . 2 Projectile 735 | . 4 . 17 . . 714 AOE 5 | . . . . . . 5 Critical Strikes 17 | . . . . . . 17 Part Disruptions 2 | . 1 . . . . 1 Damage Taken 7597 | . 30 . 298 . . 7269 Core 872 | . 4 . 16 . . 852 Absorbed by Shields 345 | . . . . . . 345 Ignored by Resistances 4774 | . 21 . 159 . . 4594 Regen/Repaired (Parts) 20 | . . . . . . 20 Core Remaining (%) 96 | 100 . . . . 92 . Volleys Fired 449 | 21 35 . 46 . . 347 Largest 2 | 1 2 . 2 . . 2 Hottest 180 | 40 66 . 66 . . 180 Shots Fired 816 | 21 70 . 92 . . 633 Gun 172 | 21 . . . . . 151 Cannon 644 | . 70 . 92 . . 482 Launcher . | . . . . . . . Special . | . . . . . . . Kinetic 347 | . 70 . 92 . . 185 Thermal 362 | 21 . . . . . 341 Explosive . | . . . . . . . Electromagnetic 107 | . . . . . . 107 Robot Hit Streak 43 | 11 20 . 43 . . 37 Robot Miss Streak 3 | 2 1 . 1 . . 3 Penetration Max . | . . . . . . . Secondary Targets . | . . . . . . . Shots Hit Robots 593 | 18 31 . 31 . . 513 Core Hits 256 | 8 18 . 7 . . 223 Critical Kills 7 | . . . . . . 7 Critical Parts Destroyed . | . . . . . . . Critical Strikes 17 | . 1 . 2 . . 14 Meltdown 7 | . . . . . . 7 Blast 6 | . 1 . 2 . . 3 Corrupt 4 | . . . . . . 4 Melee Attacks . | . . . . . . . Impact . | . . . . . . . Slashing . | . . . . . . . Piercing . | . . . . . . . Sneak Attacks . | . . . . . . . Combat Hostiles . | . . . . . . . Follow-up Attacks . | . . . . . . . Damage Inflicted 17686 | 193 664 . 613 . . 16216 Guns 2451 | 193 . . . . . 2258 Cannons 13862 | . 664 . 613 . . 12585 Explosions 1346 | . . . . . . 1346 Melee . | . . . . . . . Ramming 27 | . . . . . . 27 Kinetic 6033 | . 664 . 613 . . 4756 Thermal 10190 | 193 . . . . . 9997 Explosive . | . . . . . . . Electromagnetic 1436 | . . . . . . 1436 Impact . | . . . . . . . Slashing . | . . . . . . . Piercing . | . . . . . . . Highest Corruption 7 | . . . . . . 7 Average Corruption 3 | . . . . . . 3 Corruption Purged 14 | . . . . . . 14 Corruption Blocked . | . . . . . . . Effects 136 | . . . . . . 136 Message Errors 34 | . . . . . . 34 Matter Fused 38 | . . . . . . 38 Heat Flow Errors 12 | . . . . . . 12 Energy Discharges 23 | . . . . . . 23 Parts Rejected 2 | . . . . . . 2 Data Loss (minor) 13 | . . . . . . 13 Data Loss (major) 6 | . . . . . . 6 Misfires 5 | . . . . . . 5 Alerts 2 | . . . . . . 2 Weapon Failures 1 | . . . . . . 1 Overload Shots . | . . . . . . . Overflow Damage 768 | . . . . . . 768 Projectiles 353 | . . . . . . 353 Explosions 415 | . . . . . . 415 Melee . | . . . . . . . Knockbacks 47 | . 4 . 7 . . 36 Impact 1 | . . . . . . 1 Kinetic 44 | . 3 . 7 . . 34 Secondary 2 | . 1 . . . . 1 Self-Inflicted Damage 464 | . . . . . . 464 Shots 8 | . . . . . . 8 Rammed . | . . . . . . . Targets Rammed 3 | . . . . . . 3 Kicked 3 | . . . . . . 3 Crushed . | . . . . . . . Highest Temperature 425 | 15 254 . . . 102 425 Average Temperature 50 | 10 71 . . . 16 85 Received Heat Transfer 2598 | . 9 . 36 . . 2553 Effects 5 | . 1 . . . . 4 Shutdowns 2 | . . . . . . 2 Energy Bleed 1 | . 1 . . . . . Interference 2 | . . . . . . 2 Siege Activations . | . . . . . . . Martial Activations . | . . . . . . . Shielding Activations . | . . . . . . . Robots Disrupted . | . . . . . . . Combat Hostiles . | . . . . . . . Robots Corrupted 4 | . . . . . . 4 Combat Hostiles 4 | . . . . . . 4 Parts Fried 11 | . . . . . . 11 Impact Corruptions . | . . . . . . . Robots Melted 12 | . . . . . . 12 Combat Hostiles 9 | . . . . . . 9 Parts Melted 28 | 1 . . . . . 27 Heat Transferred 12629 | 450 . . . . . 12179 Parts Sabotaged . | . . . . . . . Parts Stolen . | . . . . . . . Parts Stripped . | . . . . . . . Power Chain Reactions 2 | . . . . . . 2 Alert | -11 -10 -10 -10 -8 -8 -6 ------- Run | Yrd Mat Min Sub Rec Scr Fac Maximum Alert Level . | . . . . . . . Low Security (%) 100 | 100 100 100 . 100 . 100 Level 1 . | . . . . . . . Level 2 . | . . . . . . . Level 3 . | . . . . . . . Level 4 . | . . . . . . . Level 5 . | . . . . . . . High Security . | . . . . . . . Max Security . | . . . . . . . Peak Influence 132 | 10 92 . . 48 . 132 Initial 24 | . 2 . . 24 . . Average 6 | 1 7 . . . . 8 Influence Increases 3815 | 35 272 . 115 83 . 3310 Destroy 0b10 Robot/C 2180 | . 140 . 100 60 . 1880 Destroy 0b10 Robot/NC 270 | 35 45 . . . . 190 Destroy Leader 676 | . 50 . . . . 626 Allied During Kill 37 | . . . 15 6 . 16 Trap Triggered on 0b10 40 | . . . . . . 40 Successful Hack 213 | . 20 . . 17 . 176 Disable Machine 180 | . 12 . . . . 168 Destroy Structure 189 | . 5 . . . . 184 Lose Combat Pursuer 30 | . . . . . . 30 Influence Decreases 3815 | 30 277 . 45 153 . 3310 Entered New Map 49 | . 3 . . 46 . . Time Decay 3582 | 30 274 . 45 87 . 3146 Lost Part 93 | . . . . . . 93 Lost Ally 91 | . . . . 20 . 71 Squads Dispatched 48 | . 1 . . . . 47 Investigation 11 | . 1 . . . . 10 Extermination 28 | . . . . . . 28 Reinforcement 6 | . . . . . . 6 Assault . | . . . . . . . Garrison 3 | . . . . . . 3 Intercept . | . . . . . . . Searches Triggered . | . . . . . . . Construction Impeded 1 | . . . . . . 1 Haulers Reinforced 2 | . . . . . . 2 Active Scanning Responses . | . . . . . . . Cargo Convoy Interrupts . | . . . . . . . Stealth | -11 -10 -10 -10 -8 -8 -6 --------- Run | Yrd Mat Min Sub Rec Scr Fac Distress Signals 2 | . 1 . . . . 1 Communications Jammed . | . . . . . . . Distress Signals . | . . . . . . . Times Spotted 136 | . 10 . 8 3 . 115 Peak Tracking Total 5 | . 5 . 2 2 . 5 Tactical Retreats 2 | . . . . . . 2 Traps | -11 -10 -10 -10 -8 -8 -6 ------- Run | Yrd Mat Min Sub Rec Scr Fac Traps Triggered 3 | . 1 . 1 . . 1 Indirectly . | . . . . . . . Trap Hack Attempts . | . . . . . . . Triggered . | . . . . . . . Disarmed 6 | . 6 . . . . . Reprogrammed 6 | . . . . . . 6 Reused 4 | . . . . . . 4 Traps Extracted . | . . . . . . . Installed . | . . . . . . . Triggered 4 | . . . . . . 4 Machines | -11 -10 -10 -10 -8 -8 -6 ---------- Run | Yrd Mat Min Sub Rec Scr Fac Machines Disabled 50 | . 3 . 5 . . 42 Max in Single Turn 12 | . 1 . 1 . . 12 Garrison Access 2 | . . . . . . 2 Machines Repaired . | . . . . . . . Machines Dismantled . | . . . . . . . Machines Sabotaged . | . . . . . . . Overloaded Fab Kills . | . . . . . . . Hacking | -11 -10 -10 -10 -8 -8 -6 --------- Run | Yrd Mat Min Sub Rec Scr Fac Machines Accessed 50 | . 4 . 4 11 . 31 Terminals 25 | . 4 . . 6 . 15 Fabricators 3 | . . . . . . 3 Repair Stations 2 | . . . . . . 2 Recycling Units 10 | . . . . 5 . 5 Scanalyzers 4 | . . . . . . 4 Garrison Access 2 | . . . . . . 2 Total Hacks 131 | . 12 . 9 24 . 86 Successful 102 | . 8 . 9 20 . 65 Failed 29 | . 4 . . 4 . 21 Catastrophic . | . . . . . . . Database Lockouts . | . . . . . . . Manual 40 | . 11 . . 13 . 16 Terminals 60 | . 12 . . 13 . 35 Fabricators 8 | . . . . . . 8 Repair Stations 7 | . . . . . . 7 Recycling Units 24 | . . . . 11 . 13 Scanalyzers 18 | . . . . . . 18 Garrison Access 5 | . . . . . . 5 Terminal Hacks 33 | . 4 . 9 4 . 16 Record 6 | . . . 6 . . . Part Schematic 13 | . . . . 3 . 10 Robot Schematic 5 | . . . . 1 . 4 Robot Analysis 1 | . . . . . . 1 Open Door 1 | . . . 1 . . . Locate Traps 1 | . 1 . . . . . Disarm Traps 3 | . 3 . . . . . Reprogram Traps 1 | . . . . . . 1 Proto ID Catalog 1 | . . . 1 . . . Release Object 1 | . . . 1 . . . Fabricator Hacks 7 | . . . . . . 7 Network Status 1 | . . . . . . 1 Load Schematic 3 | . . . . . . 3 Build 3 | . . . . . . 3 Repair Station Hacks 3 | . . . . . . 3 Scan Component 2 | . . . . . . 2 Repair 1 | . . . . . . 1 Recycling Unit Hacks 12 | . . . . 5 . 7 Report Inventory 1 | . . . . . . 1 Retrieve Matter 2 | . . . . . . 2 Retrieve Components 9 | . . . . 5 . 4 Scanalyzer 17 | . . . . . . 17 Insert Component 7 | . . . . . . 7 Analyze 10 | . . . . . . 10 Garrison Access Hacks 2 | . . . . . . 2 Seal Access 2 | . . . . . . 2 Unauthorized Hacks 28 | . 4 . . 11 . 13 Terminals 20 | . 4 . . 6 . 10 Botnet 20 | . 4 . . 6 . 10 Fabricators . | . . . . . . . Repair Stations . | . . . . . . . Recycling Units 8 | . . . . 5 . 3 Reject 8 | . . . . 5 . 3 Scanalyzers . | . . . . . . . Garrison Access . | . . . . . . . Data Cores Recovered . | . . . . . . . Used . | . . . . . . . Hacking Detections 37 | . 2 . . 7 . 28 Full Trace Events 13 | . 1 . . 2 . 10 Feedback Events . | . . . . . . . Feedback Blocked . | . . . . . . . Robot Schematics Acquired 5 | . . . . 1 . 4 Robots Built . | . . . . . . . Authchips . | . . . . . . . Time . | . . . . . . . Total Robot Build Rating . | . . . . . . . Part Schematics Acquired 36 | . . . . 3 . 33 Parts Built 4 | . . . . . . 4 Authchips . | . . . . . . . Time 151 | . . . . . . 151 Total Part Build Rating 13 | . . . . . . 13 Part Studies Acquired . | . . . . . . . Parts Repaired 1 | . . . . . . 1 Time 16 | . . . . . . 16 Parts Recycled . | . . . . . . . Recycled Matter . | . . . . . . . Retrieved Matter . | . . . . . . . Retrieved Components 48 | . . . . 15 . 33 Parts Scanalyzed 7 | . . . . . . 7 Part Schematics Acquired 6 | . . . . . . 6 Parts Damaged 1 | . . . . . . 1 Bothacking | -11 -10 -10 -10 -8 -8 -6 ------------ Run | Yrd Mat Min Sub Rec Scr Fac Used RIF Installer . | . . . . . . . Robots Hacked . | . . . . . . . Non-combat . | . . . . . . . Combat . | . . . . . . . Robot Hacks Applied . | . . . . . . . Relay Couplers Released 4 | . . . . . . 4 Programmers 4 | . . . . . . 4 Fabnet Peak Effective % . | . . . . . . . Robots Rewired 8 | . . . . 8 . . Allies Hacked . | . . . . . . . Hacks Repelled . | . . . . . . . Allies | -11 -10 -10 -10 -8 -8 -6 -------- Run | Yrd Mat Min Sub Rec Scr Fac Total Allies 17 | . . . 9 8 . . Largest Group 15 | . . . 8 15 15 15 Highest-Rated Group 248 | . . . 152 248 248 248 Highest-Rated Ally 34 | . . . 19 34 34 34 Total Orders . | . . . . . . . Ally Attacks 68 | . . . 12 17 . 39 Total Damage 2146 | . . . 530 329 . 1287 Kills 20 | . . . 6 3 . 11 Allies Corrupted . | . . . . . . . Allies Melted . | . . . . . . . Intel | -11 -10 -10 -10 -8 -8 -6 ------- Run | Yrd Mat Min Sub Rec Scr Fac Active Infowar (turns) 13050 | . . . . . . 13050 Sensors 242 | . . . . . . 242 IFF 853 | . . . . . . 853 Structural 2089 | . . . . . . 2089 Traps 2089 | . . . . . . 2089 Machine Analysis 12343 | . . . . . . 12343 Robot Analysis Total 1 | . . . . . . 1 Derelict Logs Recovered 7 | . . 2 2 . 3 . Drone Launches . | . . . . . . . Drone Recoveries . | . . . . . . . Exploration | -11 -10 -10 -10 -8 -8 -6 ------------- Run | Yrd Mat Min Sub Rec Scr Fac Turns Passed 29329 | 216 1651 1123 4864 3630 3369 14476 Spaces Moved 9062 | 69 891 688 1439 871 822 4282 Core 218 | 69 20 . . . . 129 Treads 2989 | . 871 688 468 . . 962 Legs 5597 | . . . 971 871 822 2933 Wheels . | . . . . . . . Hover 258 | . . . . . . 258 Flight . | . . . . . . . Fastest Speed 50 | 50 50 160 160 340 340 110 Average Speed 289 | 54 157 160 324 395 386 290 Slowest Speed 800 | 100 160 160 410 410 410 800 Overloaded Moves . | . . . . . . . Propulsion Burnouts . | . . . . . . . Robots Hopped . | . . . . . . . Potential Cave-ins 2 | . . . . . . 2 Cave-ins Triggered . | . . . . . . . Exploration Rate (%) 75 | 3 98 99 86 99 53 88 Regions Visited 6 Branch Regions 4 Pre-discovered Areas 4 | . . . 3 . 1 . Known Exits Taken 6 | 1 1 1 1 1 1 . Unknown Exits Taken . | . . . . . . . Scrap Searched 15 | . . 1 7 . 7 . Spaces Dug 16 | . 3 . . . . 13 Terrain Destroyed 179 | . 5 . . . . 174 Melee . | . . . . . . . Projectile 63 | . 5 . . . . 58 AOE 116 | . . . . . . 116 Terrain Rammed . | . . . . . . . Walls Destroyed . | . . . . . . . Machines Disabled . | . . . . . . . Actions | -11 -10 -10 -10 -8 -8 -6 --------- Run | Yrd Mat Min Sub Rec Scr Fac Total 11375 | 225 1068 709 1548 1056 1030 5739 Wait 1397 | 126 121 17 30 99 170 834 Move 9056 | 68 890 687 1438 870 821 4282 Hop . | . . . . . . . Pick Up 155 | 6 10 1 14 17 14 93 Fast Attach 47 | 2 3 . . . 1 41 Attach 39 | 1 5 . 5 . 1 27 Detach 12 | . 1 . 5 . . 6 Swap 42 | . 1 3 4 1 6 27 Drop 109 | 1 2 1 6 3 17 79 Fire 449 | 21 35 . 46 . . 347 Melee . | . . . . . . . Ram . | . . . . . . . Kick 3 | . . . . . . 3 Crush . | . . . . . . . Escape Stasis . | . . . . . . . Rewire 66 | . . . . 66 . . Trap . | . . . . . . . Miscellaneous . | . . . . . . . Route ------- -11/Scrapyard -10/Materials (discovered 4 exits: *Mat x3 / *Min) -10/Mines (discovered 3 exits: *Mat x2 / *Sub) -10/Subcaves (discovered 2 exits: *Mat / *Rec) -8/Recycling (discovered 2 exits: *Fac / *Scr) -8/Scraptown -6/Factory (discovered 6 exits: *Fac x4 / *Low x2) History --------- Turn | Location | Event 8 | -11/Scrapyard | Identified exit to Materials 8 | -11/Scrapyard | Discovered exit to Materials (range 16) 217 | -11/Scrapyard | Entered Materials 217 | -10/Materials | Evolved 1 slot: Utility x1 301 | -10/Materials | Build established: Hacker-Mutant 570 | -10/Materials | Identified exit to Materials 570 | -10/Materials | Discovered exit to Materials (range 16) 739 | -10/Materials | Discovered exit to Materials (range 9) 858 | -10/Materials | Identified exit to Mines 858 | -10/Materials | Discovered exit to Mines (range 16) 1357 | -10/Materials | Discovered exit to Materials (range 7) 1868 | -10/Materials | Entered Mines 1972 | -10/Mines | Learned Materials garrison access intel 1972 | -10/Mines | Identified exit to Subcaves 1972 | -10/Mines | Discovered exit to Subcaves (range 9) 2024 | -10/Mines | Discovered exit to Materials (range 16) 2125 | -10/Mines | Discovered exit to Materials (range 9) 2173 | -10/Mines | Learned 2 Materials zone layouts 2991 | -10/Mines | Entered Subcaves 2991 | -10/Subcaves | Learned location of Zion (-6) 3366 | -10/Subcaves | Visited Clippyterm 3373 | -10/Subcaves | Identified exit to Recycling 3373 | -10/Subcaves | Learned Research security intel 3383 | -10/Subcaves | Identified exit to Materials 3383 | -10/Subcaves | Discovered exit to Materials (range 10) 3387 | -10/Subcaves | A swath of the cavern ceiling suddenly collapsed 3497 | -10/Subcaves | Visited triangular shrine 3512 | -10/Subcaves | Found Prototype Device 3515 | -10/Subcaves | Identified V3-11A's Pendant 3520 | -10/Subcaves | Befriended Subdweller 4088 | -10/Subcaves | Visited 4L-MR0's lab 4115 | -10/Subcaves | Found Cargo Legs 4118 | -10/Subcaves | Attached Cargo Legs, gained temporary slots: Utility x2 4205 | -10/Subcaves | Befriended Subdweller 4225 | -10/Subcaves | Befriended Subdweller 4225 | -10/Subcaves | Befriended Subdweller 4349 | -10/Subcaves | Found SUBCON Basin 4405 | -10/Subcaves | Met a Zionite searching for "candidates" 4580 | -10/Subcaves | Befriended Subdweller 4635 | -10/Subcaves | Befriended Subdweller 4640 | -10/Subcaves | Befriended Subdweller 4655 | -10/Subcaves | Build established: Hauler-Mutant 4840 | -10/Subcaves | Befriended Subdweller 4840 | -10/Subcaves | Befriended Subdweller 4923 | -10/Subcaves | A swath of the cavern ceiling suddenly collapsed 5795 | -10/Subcaves | Shifting Twisted Machinery released Riot Gun 5796 | -10/Subcaves | Shifting Twisted Machinery released Shrapnel Trap 6263 | -10/Subcaves | Shifting Twisted Machinery released Battle Cannon 6314 | -10/Subcaves | Shifting Twisted Machinery released Shrapnel Trap 7855 | -10/Subcaves | Entered Recycling 7855 | -8/Recycling | Accompanied by 8 allies 7976 | -8/Recycling | Scanned before Scraplab entrance 8038 | -8/Recycling | Entered Scraplab 9196 | -8/Recycling | Identified exit to Factory 9196 | -8/Recycling | Discovered exit to Factory (range 16) 10254 | -8/Recycling | Build established: Commander-Mutant 11366 | -8/Recycling | Identified exit to Scraptown 11366 | -8/Recycling | Discovered exit to Scraptown (range 2) 11485 | -8/Recycling | Entered Scraptown 11485 | -8/Scraptown | Accompanied by 15 allies 11737 | -8/Scraptown | Delivered V3-11A's Pendant to T0-NE2 in exchange for information 11771 | -8/Scraptown | Learned location of Extension (-5) 12170 | -8/Scraptown | Discovered exit to Factory (range 13) 12362 | -8/Scraptown | Scanned Subdweller tech in exchange for log data 12465 | -8/Scraptown | Visited Bundlers 12991 | -8/Scraptown | Visited Cyclists 13032 | -8/Scraptown | Visited Red Mages 13094 | -8/Scraptown | Visited Cave Peace 13164 | -8/Scraptown | Visited Spacefarers 13315 | -8/Scraptown | Visited Shadow of the Wyrm 13369 | -8/Scraptown | Visited CPS Storage 14854 | -8/Scraptown | Entered Factory 14854 | -6/Factory | Accompanied by 15 allies 14854 | -6/Factory | Evolved 8 slots: Power x1, Propulsion x3, Utility x4 14855 | -6/Factory | Identified exit to Lower Caves 15206 | -6/Factory | Lost 3 allies 15345 | -6/Factory | Lost 4 allies 15378 | -6/Factory | Tech Extrapolator generated special schematic: Deep Structural Scanner 15447 | -6/Factory | Lost 4 allies 15456 | -6/Factory | Build established: Hauler-Mutant 15603 | -6/Factory | Fabricated Deep Structural Scanner (x1) 15809 | -6/Factory | Tech Extrapolator generated special schematic: Machine Rigger 16737 | -6/Factory | Discovered exit to Lower Caves (range 8) 17088 | -6/Factory | Identified exit to Factory 17088 | -6/Factory | Discovered exit to Factory (range 9) 17365 | -6/Factory | Garrison activated, responded to threat 17648 | -6/Factory | Lost 16 parts (1n6u9w) 17921 | -6/Factory | Build established: Hacker-Mutant 17981 | -6/Factory | Discovered exit to Factory (range 15) 18225 | -6/Factory | Lost 3 parts (1p1n1u) 19028 | -6/Factory | Core integrity fell below 50% 19954 | -6/Factory | Build established: Hauler-Mutant 22069 | -6/Factory | Spotted B-75 Beast 22079 | -6/Factory | Lost 4 parts (2u2w) 22130 | -6/Factory | Destroyed B-75 Beast 23130 | -6/Factory | Discovered exit to Factory (range 10) 23900 | -6/Factory | Found Prototype Processor 23904 | -6/Factory | Found Prototype Processor 24770 | -6/Factory | Core integrity fell below 20% 25102 | -6/Factory | Fabricated Humpback (x1) 25267 | -6/Factory | Repaired Imp. Cryofiber Web 26736 | -6/Factory | Discovered exit to Factory (range 10) 27635 | -6/Factory | Fabricated Mak. System Restoration Module (x2) 29330 | -6/Factory | Destroyed by G-50 Soldier with Heavy Laser Last Messages --------------- Schematic downloaded. >>Schematic(Myomer Leg) Downloading schematic... Myomer Leg Rating: 7 Schematic downloaded. 29205_ ALERT: Suspicious activity at Terminal F014. Dispatching Investigation squad. 29258_ ALERT: Potential suspicious activity detected, Programmers report to Factory Zone 6S. 29267_ B-48 Gladiator destroyed. 29269_ K-01 Serf collects debris. 29270_ U-05 Engineer builds a Wall. 29270_ K-01 Serf collects debris. 29282_ Imp. Medium Treads destroyed. 29282_ Destroyed Lgt. Angular Momentum Engine. 29282_ G-50 Soldier destroyed. 29282_ K-01 Serf collects debris. 29297_ U-05 Engineer builds a Wall. Map ----- +----------------------------------------------------+ | ???????????????####+#### ## """ #????? | | ???????????????# ###+##### !!! #????? | | ??????????###### ! !""""" ###### | | ??????????# "" !!!""""" # | | ??????????# "T "" # ! | | ??????????# % # | | ??????????###### % # | | ???????????????# ######### # | | ???????????????### ###???????# *[[ F"% # | | ?????????????????# #?????????# *[ %"% # | | ????????????"""??# #?????????# *[ "" + = | | ????????????"""??# #?????????# % % # | | ???????"""??"""??# #?????????# ! ###### | | ???????"R????????# #?????????# [ #### + | | ???????"""???????# ########??# =########## [ | | ???????"""???????# ## ??# # # [ | | ?????????????????# ## """"# # "" ]# | | ??????#####+###### ## """"#% %+ "" # """ | | ????? # """"# % # """ # """ | | ????? # """"# # """ # """ | | ????? # """"# # """ # | | ????? # """"#% + # """ | | ????? # """"# # = ]# """ | | ??????#####+##### # # ########## """ | | ????????????????# ###/###### ####"##### | | ????????????????# @ ##+#### | | ????????????????# k g | | ????????????????# % g | | ????????????????# % | | ????????????????#% ###### | | ????????????????## %####+########## % #????# | | ????????????????## ??? ????????# #????# | | ?????????????????# %??? """"??????# #????#? | | ?????????????????# % ??? """"??????# #????? | | ????????????????? %??? """"??????# #????? | | ????????????????#####??? """"?????# #????+ | | ?????????????????##????? """"?????#T #????## | | ???????????????????????? """"?????## "?????? | | ???????????????????????? ??????????# # ????? | | ???????????????????????? ??????????# ###???? | | ???????????????????????????????????# #?????? | | ???????????????????????????????????# #?????? | | ?????"""""""""?????????????????????? ????????? | | ???????????????????????????????????? ???????#### | | ?????"""""""""???????????????????????????????? | | ????????????????????????????????????????????? | | ?????"""""""""??????????????????????????????? | | ####???????????????????????????????????????? | | #?"""""""""?????????????????????????????? | | #?????????????????????????????"""""""""?""""""" | +----------------------------------------------------+ Best States ------------- Heat Dissipation 113 Energy Generation 31 Energy Capacity 410 Matter Stores 300 Matter Capacity 300 Sight Range 16 Robot Scan Range 14 Terrain Scan Density 10 Base Temperature (-) 150 EM Shielding 2 Armor Coverage 600 Resistance: KI 35 Resistance: TH 35 Resistance: EX 35 Resistance: EM 35 Resistance: I 35 Resistance: S 35 Resistance: P 35 Evasion (%) 55 Targeting Accuracy 8 Recoil Reduction 5 Offensive Hacking 30 Authchip Count 3 Item Schematics ----------------- Lgt. Fission Core | -8/Recycling | Hacked Great Maul | -8/Recycling | Hacked Shock Absorption System | -8/Recycling | Hacked Imp. Gravmag System | -6/Factory | Hacked Hvy. Shock Bomb Launcher | -6/Factory | Hacked Mak. Coolant Network | -6/Factory | Extrapolated Lgt. Humpback | -6/Factory | Extrapolated Deep Structural Scanner | -6/Factory | Extrapolated 0b10 Decoder Chip [Generic] | -6/Factory | Extrapolated 0b10 Decoder Chip [Scout] | -6/Factory | Extrapolated 0b10 Decoder Chip [Skirmisher] | -6/Factory | Extrapolated Mak. Light Armor Plating | -6/Factory | Extrapolated Machine Rigger | -6/Factory | Extrapolated Adv. Shield Generator | -6/Factory | Hacked Beamcaster | -6/Factory | Extrapolated Mak. Shrapnel Gun | -6/Factory | Extrapolated Ripper | -6/Factory | Extrapolated Mak. System Restoration Module | -6/Factory | Extrapolated Hacking Suite | -6/Factory | Scanalyzed Mak. Hover Unit | -6/Factory | Extrapolated Mak. Heavy Armor Plating | -6/Factory | Extrapolated Humpback | -6/Factory | Scanalyzed Tactical Coordination Suite | -6/Factory | Extrapolated Hpw. Shotgun | -6/Factory | Scanalyzed Adv. Terrain Scan Processor | -6/Factory | Scanalyzed Adv. Heat Sink | -6/Factory | Hacked Nuclear Pulse Array | -6/Factory | Hacked Mak. Sensor Array | -6/Factory | Extrapolated Mak. Terrain Scanner | -6/Factory | Extrapolated Adv. Actuator Array | -6/Factory | Hacked Imp. Plasma Cutter | -6/Factory | Hacked Adv. Sensor Array | -6/Factory | Scanalyzed Adv. Signal Interpreter | -6/Factory | Scanalyzed Lyr. Heavy Armor Plating | -6/Factory | Hacked Railgun | -6/Factory | Hacked Myomer Leg | -6/Factory | Hacked Robot Schematics ------------------ K-01 Serf | -8/Recycling | Hacked G-50 Soldier | -6/Factory | Hacked T-07 Excavator | -6/Factory | Hacked L-41 Fighter | -6/Factory | Hacked E-15 Imp | -6/Factory | Hacked Fabricated ------------ Deep Structural Scanner | x1 | -6/Factory Humpback | x1 | -6/Factory Mak. System Restoration Module | x2 | -6/Factory Repaired ---------- Imp. Cryofiber Web | 37% | -6/Factory Studied --------- None Alien Tech Used ----------------- None Achievements -------------- None Challenges ------------ None Game ------ Seed ResetRagnarokAutocannon Manual? 0 Play Time 01:38:02 Cumulative 255.3 hours Start 2026.01.06 @ 14:42:18 End 2026.01.06 @ 16:18:53 Sessions 1 Manual Loads 0 Difficulty Explorer Special Mode None Game No. 401 Rogue 0 Adventurer 0 Explorer 401 Win Type - Total 0 Types 0/0/0/0/0/0/0/0/0/0 Lore% 72 Gallery% 69 Achievement% 54 Wizard Run 0 Options --------- Layout 1 ASCII 0 Keyboard 0 Movement Mouse Keybinds 0 Fullscreen 1 Font 24/Smallcaps Map View 50x35 Zoom Use 0% Tactical HUD 1 Map Filters NONE Filters NONE Steam 1 RUN: 1df2ae84-839c-45c7-a302-d4dc12cd31bb